[Event "*** Titled Tuesday Blitz"]
[Site "Chess.com"]
[Date "2020.05.12"]
[Round "5"]
[White "zurzan"]
[Black "Trickov"]
[Result "0-1"]
[WhiteElo "1979"]
[BlackElo "2290"]
[TimeControl "180+1"]
[EndTime "10:56:47 PDT"]
[Termination "Trickov won on time"]

1. f4 {[%clk 0:03:00.9]} 1... d5 {[%clk 0:02:58.1]} 2. Nf3 {[%clk 0:03:00.2]}
2... Nf6 {[%clk 0:02:57.7]} 3. g3 {[%clk 0:03:00.3]} 3... g6 {[%clk 0:02:57]} 4.
Bg2 {[%clk 0:03:01.2]} 4... Bg7 {[%clk 0:02:57.5]} 5. O-O {[%clk 0:03:02.1]}
5... O-O {[%clk 0:02:57.7]} 6. d3 {[%clk 0:03:03]} 6... c5 {[%clk 0:02:57.7]} 7.
c3 {[%clk 0:03:03.9]} 7... Nc6 {[%clk 0:02:57.9]} 8. Qe1 {[%clk 0:03:04.8]} 8...
Re8 {[%clk 0:02:50.6]} 9. Ne5 {[%clk 0:03:02.9]} 9... Qc7 {[%clk 0:02:32.3]} 10.
Nxc6 {[%clk 0:03:01.9]} 10... bxc6 {[%clk 0:02:31.3]} 11. e4 {[%clk 0:02:43.1]}
11... e5 {[%clk 0:02:28.2]} 12. f5 {[%clk 0:02:42.6]} 12... Ba6 {[%clk
0:02:23.3]} 13. fxg6 {[%clk 0:02:32.9]} 13... hxg6 {[%clk 0:02:19.3]} 14. Bg5
{[%clk 0:02:28.6]} 14... Bxd3 {[%clk 0:01:50.7]} 15. Rxf6 {[%clk 0:02:27.6]}
15... Bxf6 {[%clk 0:01:40.2]} 16. Bxf6 {[%clk 0:02:27]} 16... Re6 {[%clk
0:01:39.5]} 17. Qf2 {[%clk 0:02:12.7]} 17... Qd6 {[%clk 0:01:35.9]} 18. Bg5
{[%clk 0:02:06.6]} 18... dxe4 {[%clk 0:01:16.1]} 19. Nd2 {[%clk 0:01:59.7]}
19... f6 {[%clk 0:01:15.5]} 20. Be3 {[%clk 0:01:59.1]} 20... f5 {[%clk
0:01:10.4]} 21. Bxc5 {[%clk 0:01:52.5]} 21... Qd5 {[%clk 0:01:10.1]} 22. Be3
{[%clk 0:01:51.6]} 22... a5 {[%clk 0:01:04.2]} 23. b3 {[%clk 0:01:50.1]} 23...
a4 {[%clk 0:01:00.6]} 24. c4 {[%clk 0:01:50.2]} 24... Qd6 {[%clk 0:00:55]} 25.
Rc1 {[%clk 0:01:47.3]} 25... axb3 {[%clk 0:00:53.2]} 26. axb3 {[%clk 0:01:46.7]}
26... Ra2 {[%clk 0:00:53.1]} 27. Bc5 {[%clk 0:01:20.6]} 27... Qd8 {[%clk
0:00:49.3]} 28. Qe3 {[%clk 0:01:10.7]} 28... Kg7 {[%clk 0:00:42.9]} 29. Nf1
{[%clk 0:00:51.2]} 29... Qa5 {[%clk 0:00:38.2]} 30. b4 {[%clk 0:00:50]} 30...
Qa3 {[%clk 0:00:37.2]} 31. b5 {[%clk 0:00:46.6]} 31... Qb2 {[%clk 0:00:34.9]}
32. Qf2 {[%clk 0:00:44.1]} 32... cxb5 {[%clk 0:00:31.8]} 33. Qxb2 {[%clk
0:00:43.4]} 33... Rxb2 {[%clk 0:00:31.4]} 34. cxb5 {[%clk 0:00:43.9]} 34... Rxb5
{[%clk 0:00:31.4]} 35. Be3 {[%clk 0:00:40]} 35... Rb1 {[%clk 0:00:28.7]} 36.
Rxb1 {[%clk 0:00:39.5]} 36... Bxb1 {[%clk 0:00:28.4]} 37. Nd2 {[%clk 0:00:40.4]}
37... Bd3 {[%clk 0:00:28.2]} 38. h4 {[%clk 0:00:39.2]} 38... Ra6 {[%clk
0:00:27.6]} 39. Bf1 {[%clk 0:00:37.6]} 39... Ra1 {[%clk 0:00:26.4]} 40. Kf2
{[%clk 0:00:37.8]} 40... Bxf1 {[%clk 0:00:25]} 41. Nxf1 {[%clk 0:00:37.8]} 41...
Ra2+ {[%clk 0:00:23.9]} 42. Nd2 {[%clk 0:00:37.5]} 42... Kf6 {[%clk 0:00:21.2]}
43. Ke1 {[%clk 0:00:37]} 43... Ke6 {[%clk 0:00:20.5]} 44. Kd1 {[%clk 0:00:35.7]}
44... Kd5 {[%clk 0:00:20.5]} 45. Kc1 {[%clk 0:00:35.3]} 45... Ra3 {[%clk
0:00:20.4]} 46. Bf2 {[%clk 0:00:32.6]} 46... Rd3 {[%clk 0:00:19.3]} 47. Kc2
{[%clk 0:00:31.8]} 47... f4 {[%clk 0:00:18.7]} 48. gxf4 {[%clk 0:00:31.2]} 48...
exf4 {[%clk 0:00:19]} 49. Be1 {[%clk 0:00:22.8]} 49... Rh3 {[%clk 0:00:18.6]}
50. Nf1 {[%clk 0:00:19.7]} 50... Rh1 {[%clk 0:00:17.7]} 51. Bd2 {[%clk
0:00:13.9]} 51... Rxf1 {[%clk 0:00:16.5]} 52. Bc3 {[%clk 0:00:06.5]} 52... e3
{[%clk 0:00:16.1]} 53. Kd3 {[%clk 0:00:05.4]} 53... Rh1 {[%clk 0:00:14.5]} 54.
Bf6 {[%clk 0:00:04]} 54... Ke6 {[%clk 0:00:13.9]} 55. Bg5 {[%clk 0:00:03.6]}
55... Kf5 {[%clk 0:00:14.1]} 56. Ke2 {[%clk 0:00:02.9]} 56... Kg4 {[%clk
0:00:14.3]} 0-1

[Event "*** Titled Tuesday Blitz"]
[Site "Chess.com"]
[Date "2020.05.12"]
[Round "5"]
[White "Konovalova_Vera"]
[Black "AwareIdea"]
[Result "0-1"]
[WhiteElo "2097"]
[BlackElo "2523"]
[TimeControl "180+1"]
[EndTime "10:56:50 PDT"]
[Termination "AwareIdea won on time"]

1. d4 {[%clk 0:03:00.9]} 1... d5 {[%clk 0:02:58.5]} 2. Nf3 {[%clk 0:03:00.4]}
2... Nf6 {[%clk 0:02:57.8]} 3. Bg5 {[%clk 0:03:00.1]} 3... Ne4 {[%clk
0:02:56.9]} 4. Bh4 {[%clk 0:02:59.5]} 4... c6 {[%clk 0:02:53]} 5. c3 {[%clk
0:02:57.9]} 5... Qb6 {[%clk 0:02:52.2]} 6. Qc2 {[%clk 0:02:55.8]} 6... Bf5
{[%clk 0:02:51.3]} 7. Qc1 {[%clk 0:02:52.1]} 7... Nd7 {[%clk 0:02:49.2]} 8. e3
{[%clk 0:02:50.7]} 8... h6 {[%clk 0:02:35.3]} 9. Be2 {[%clk 0:02:49.3]} 9... g5
{[%clk 0:02:32.5]} 10. Bg3 {[%clk 0:02:48.9]} 10... Bg7 {[%clk 0:02:33.4]} 11.
Nbd2 {[%clk 0:02:43.9]} 11... Nxg3 {[%clk 0:02:28.7]} 12. hxg3 {[%clk
0:02:42.8]} 12... e5 {[%clk 0:02:27.3]} 13. dxe5 {[%clk 0:02:39.4]} 13... Nxe5
{[%clk 0:02:28.2]} 14. Nxe5 {[%clk 0:02:37.2]} 14... Bxe5 {[%clk 0:02:29.1]} 15.
Nf3 {[%clk 0:02:35.1]} 15... Bf6 {[%clk 0:02:14.1]} 16. Qd2 {[%clk 0:02:26.5]}
16... a5 {[%clk 0:02:05.8]} 17. Nd4 {[%clk 0:02:23.9]} 17... Bg6 {[%clk
0:02:00.2]} 18. Bd3 {[%clk 0:02:17.9]} 18... c5 {[%clk 0:01:12.5]} 19. Nf5
{[%clk 0:01:51.5]} 19... O-O-O {[%clk 0:00:49]} 20. O-O {[%clk 0:01:32.1]} 20...
h5 {[%clk 0:00:46.6]} 21. Qc2 {[%clk 0:01:19.2]} 21... c4 {[%clk 0:00:36.8]} 22.
Be2 {[%clk 0:01:16.9]} 22... Qe6 {[%clk 0:00:23.4]} 23. g4 {[%clk 0:01:14.7]}
23... Kb8 {[%clk 0:00:20.4]} 24. Rad1 {[%clk 0:00:52.5]} 24... hxg4 {[%clk
0:00:19.6]} 25. Bxg4 {[%clk 0:00:51.7]} 25... Qe5 {[%clk 0:00:20]} 26. g3 {[%clk
0:00:43]} 26... Rh7 {[%clk 0:00:17.4]} 27. Kg2 {[%clk 0:00:28.3]} 27... Rdh8
{[%clk 0:00:16.8]} 28. Rh1 {[%clk 0:00:26.1]} 28... Rxh1 {[%clk 0:00:15.2]} 29.
Rxh1 {[%clk 0:00:25.8]} 29... Rxh1 {[%clk 0:00:16.1]} 30. Kxh1 {[%clk
0:00:25.6]} 30... b5 {[%clk 0:00:15.5]} 31. Kg2 {[%clk 0:00:24]} 31... b4 {[%clk
0:00:15.7]} 32. cxb4 {[%clk 0:00:22.7]} 32... axb4 {[%clk 0:00:16.6]} 33. e4
{[%clk 0:00:16.5]} 33... Qxe4+ {[%clk 0:00:13.2]} 34. Qxe4 {[%clk 0:00:15.8]}
34... dxe4 {[%clk 0:00:14.1]} 35. Nd6 {[%clk 0:00:15.2]} 35... c3 {[%clk
0:00:09.1]} 36. bxc3 {[%clk 0:00:13.7]} 36... bxc3 {[%clk 0:00:09.5]} 37. Bd1
{[%clk 0:00:11.6]} 37... Be7 {[%clk 0:00:08.5]} 38. Nb5 {[%clk 0:00:10]} 38...
Bb4 {[%clk 0:00:08.5]} 39. Nd4 {[%clk 0:00:09.5]} 39... Kc7 {[%clk 0:00:05.8]}
40. Kf1 {[%clk 0:00:08.4]} 40... Kd6 {[%clk 0:00:04.8]} 41. g4 {[%clk
0:00:07.5]} 41... Kc5 {[%clk 0:00:04.8]} 42. Nc2 {[%clk 0:00:06.7]} 42... Ba5
{[%clk 0:00:04.6]} 43. Ne3 {[%clk 0:00:06.4]} 43... f6 {[%clk 0:00:04.3]} 44.
Ke2 {[%clk 0:00:06]} 44... Bf7 {[%clk 0:00:04.7]} 45. a3 {[%clk 0:00:05]} 45...
Bb6 {[%clk 0:00:04.6]} 46. Bc2 {[%clk 0:00:04.9]} 46... Bc4+ {[%clk 0:00:05.1]}
47. Ke1 {[%clk 0:00:05]} 47... Be6 {[%clk 0:00:04.2]} 48. Bxe4 {[%clk
0:00:04.2]} 48... Kd4 {[%clk 0:00:04.3]} 49. Bc2 {[%clk 0:00:04.2]} 49... Bc5
{[%clk 0:00:04.4]} 50. Ke2 {[%clk 0:00:03.3]} 50... Ke5 {[%clk 0:00:04.8]} 51.
Nd1 {[%clk 0:00:02.3]} 51... Bxa3 {[%clk 0:00:04.9]} 52. Nxc3 {[%clk 0:00:01.5]}
52... Bxg4+ {[%clk 0:00:05.5]} 53. f3 {[%clk 0:00:01.4]} 53... Be6 {[%clk
0:00:05.9]} 54. Ne4 {[%clk 0:00:01.8]} 54... Bc4+ {[%clk 0:00:05.8]} 55. Ke3
{[%clk 0:00:01.8]} 55... Be7 {[%clk 0:00:05.4]} 56. Nf2 {[%clk 0:00:01.8]} 56...
Bd8 {[%clk 0:00:05]} 57. Ng4+ {[%clk 0:00:02.3]} 57... Ke6 {[%clk 0:00:04.9]}
0-1

[Event "*** Titled Tuesday Blitz"]
[Site "Chess.com"]
[Date "2020.05.12"]
[Round "5"]
[White "stolencandy13"]
[Black "Angel_Hranitel_37"]
[Result "1-0"]
[WhiteElo "2512"]
[BlackElo "2359"]
[TimeControl "180+1"]
[EndTime "10:56:51 PDT"]
[Termination "stolencandy13 won by checkmate"]

1. e4 {[%clk 0:03:00.9]} 1... c5 {[%clk 0:02:58.9]} 2. Nf3 {[%clk 0:03:00.9]}
2... e6 {[%clk 0:02:58.4]} 3. d4 {[%clk 0:03:01.2]} 3... cxd4 {[%clk 0:02:59.3]}
4. Nxd4 {[%clk 0:03:02]} 4... Nf6 {[%clk 0:02:53.5]} 5. Nc3 {[%clk 0:03:00.3]}
5... Nc6 {[%clk 0:02:54]} 6. Ndb5 {[%clk 0:02:54.6]} 6... Bc5 {[%clk 0:02:52.7]}
7. Bf4 {[%clk 0:02:49.9]} 7... O-O {[%clk 0:02:53.1]} 8. Bc7 {[%clk 0:02:45.9]}
8... Qe7 {[%clk 0:02:53.4]} 9. Bd6 {[%clk 0:02:43.7]} 9... Bxd6 {[%clk
0:02:53.9]} 10. Qxd6 {[%clk 0:02:41.1]} 10... Qd8 {[%clk 0:02:54.6]} 11. O-O-O
{[%clk 0:02:32.6]} 11... a6 {[%clk 0:02:54.5]} 12. Nd4 {[%clk 0:02:29.7]} 12...
Ne7 {[%clk 0:02:54.7]} 13. Kb1 {[%clk 0:02:20.9]} 13... b5 {[%clk 0:02:52.4]}
14. f3 {[%clk 0:02:16.1]} 14... Bb7 {[%clk 0:02:51.8]} 15. g4 {[%clk 0:02:14.4]}
15... Ne8 {[%clk 0:02:47.4]} 16. Qb4 {[%clk 0:02:14.2]} 16... Rc8 {[%clk
0:02:45.6]} 17. h4 {[%clk 0:02:09.8]} 17... d6 {[%clk 0:02:45.7]} 18. a4 {[%clk
0:01:56.4]} 18... a5 {[%clk 0:02:30.3]} 19. Qxb5 {[%clk 0:01:53.3]} 19... Rb8
{[%clk 0:02:30.5]} 20. Qc4 {[%clk 0:01:51.3]} 20... d5 {[%clk 0:02:10.9]} 21.
Qc5 {[%clk 0:01:51.1]} 21... Nd6 {[%clk 0:02:08.6]} 22. Nb3 {[%clk 0:01:46.1]}
22... Rc8 {[%clk 0:01:51.4]} 23. Qxa5 {[%clk 0:01:42.3]} 23... dxe4 {[%clk
0:01:48.2]} 24. Qe5 {[%clk 0:01:35.7]} 24... Bd5 {[%clk 0:00:38.1]} 25. fxe4
{[%clk 0:01:31]} 25... f6 {[%clk 0:00:34.4]} 26. Qd4 {[%clk 0:01:22.6]} 26...
Nxe4 {[%clk 0:00:18.1]} 27. Nxd5 {[%clk 0:01:19.3]} 27... exd5 {[%clk
0:00:16.8]} 28. Bg2 {[%clk 0:01:15.1]} 28... Qc7 {[%clk 0:00:16.3]} 29. Bxe4
{[%clk 0:01:07.6]} 29... dxe4 {[%clk 0:00:17.2]} 30. Qxe4 {[%clk 0:01:07.3]}
30... Nc6 {[%clk 0:00:17.5]} 31. h5 {[%clk 0:00:59.6]} 31... Rfe8 {[%clk
0:00:12.3]} 32. Qc4+ {[%clk 0:00:56.1]} 32... Kh8 {[%clk 0:00:12.4]} 33. h6
{[%clk 0:00:56.2]} 33... g6 {[%clk 0:00:10.5]} 34. Rhe1 {[%clk 0:00:46.7]} 34...
Rxe1 {[%clk 0:00:07]} 35. Rxe1 {[%clk 0:00:47.6]} 35... Qd7 {[%clk 0:00:07]} 36.
Qe6 {[%clk 0:00:44]} 36... Qxe6 {[%clk 0:00:03.1]} 37. Rxe6 {[%clk 0:00:44.9]}
37... Nb4 {[%clk 0:00:03.4]} 38. c3 {[%clk 0:00:42.3]} 38... Nd3 {[%clk
0:00:02.6]} 39. Kc2 {[%clk 0:00:39]} 39... Ne5 {[%clk 0:00:02.7]} 40. g5 {[%clk
0:00:33.4]} 40... Ng4 {[%clk 0:00:03.1]} 41. gxf6 {[%clk 0:00:31.4]} 41... Kg8
{[%clk 0:00:03.7]} 42. Re7 {[%clk 0:00:28.7]} 42... Nxf6 {[%clk 0:00:04.1]} 43.
a5 {[%clk 0:00:25.8]} 43... Ra8 {[%clk 0:00:03.6]} 44. Re6 {[%clk 0:00:23.3]}
44... Ng4 {[%clk 0:00:03.7]} 45. a6 {[%clk 0:00:23.7]} 45... Nxh6 {[%clk
0:00:04.2]} 46. Nc5 {[%clk 0:00:23.6]} 46... Nf7 {[%clk 0:00:04.4]} 47. Re7
{[%clk 0:00:22.7]} 47... Nd6 {[%clk 0:00:03.8]} 48. a7 {[%clk 0:00:20.9]} 48...
g5 {[%clk 0:00:03.6]} 49. Rd7 {[%clk 0:00:21.1]} 49... Nb5 {[%clk 0:00:03.5]}
50. Rd5 {[%clk 0:00:14.2]} 50... Nxa7 {[%clk 0:00:02.8]} 51. Rxg5+ {[%clk
0:00:14]} 51... Kf7 {[%clk 0:00:03.6]} 52. Rd5 {[%clk 0:00:14.5]} 52... Nc6
{[%clk 0:00:02.6]} 53. b4 {[%clk 0:00:13.2]} 53... Ra2+ {[%clk 0:00:02.3]} 54.
Kd3 {[%clk 0:00:13.6]} 54... Rg2 {[%clk 0:00:03.1]} 55. Rd7+ {[%clk 0:00:13.6]}
55... Kf6 {[%clk 0:00:02.5]} 56. Rd6+ {[%clk 0:00:13.8]} 56... Ke5 {[%clk
0:00:03.4]} 57. Rxc6 {[%clk 0:00:14]} 57... h5 {[%clk 0:00:04.3]} 58. Kc4 {[%clk
0:00:14.3]} 58... h4 {[%clk 0:00:04.4]} 59. Rh6 {[%clk 0:00:14.3]} 59... Rh2
{[%clk 0:00:04.3]} 60. b5 {[%clk 0:00:14.7]} 60... Rh1 {[%clk 0:00:05]} 61. b6
{[%clk 0:00:15.1]} 61... h3 {[%clk 0:00:05.9]} 62. b7 {[%clk 0:00:15.5]} 62...
h2 {[%clk 0:00:06.6]} 63. b8=Q+ {[%clk 0:00:14.8]} 63... Kf5 {[%clk 0:00:05.8]}
64. Rxh2 {[%clk 0:00:15.1]} 64... Kg4 {[%clk 0:00:06.4]} 65. Rxh1 {[%clk
0:00:14.2]} 65... Kf3 {[%clk 0:00:07.3]} 66. Qf8+ {[%clk 0:00:12.9]} 66... Kg2
{[%clk 0:00:07.8]} 67. Rh7 {[%clk 0:00:11.2]} 67... Kg3 {[%clk 0:00:08.2]} 68.
Rg7+ {[%clk 0:00:11.6]} 68... Kh3 {[%clk 0:00:09.1]} 69. Qh8# {[%clk 0:00:12.2]}
1-0

[Event "*** Titled Tuesday Blitz"]
[Site "Chess.com"]
[Date "2020.05.12"]
[Round "5"]
[White "igorcadilhac"]
[Black "Grandmaster2B"]
[Result "1/2-1/2"]
[WhiteElo "2348"]
[BlackElo "2487"]
[TimeControl "180+1"]
[EndTime "10:56:51 PDT"]
[Termination "Game drawn by stalemate"]

1. e4 {[%clk 0:03:00.9]} 1... c5 {[%clk 0:02:59.7]} 2. Nf3 {[%clk 0:03:01.3]}
2... d6 {[%clk 0:03:00.3]} 3. d4 {[%clk 0:03:01.7]} 3... cxd4 {[%clk 0:03:01.2]}
4. Qxd4 {[%clk 0:03:01.8]} 4... Nf6 {[%clk 0:02:55.1]} 5. e5 {[%clk 0:03:00.8]}
5... Nc6 {[%clk 0:02:49.5]} 6. Bb5 {[%clk 0:03:00.7]} 6... dxe5 {[%clk
0:02:32.4]} 7. Qxd8+ {[%clk 0:02:57.2]} 7... Kxd8 {[%clk 0:02:30.9]} 8. Bxc6
{[%clk 0:02:58.1]} 8... bxc6 {[%clk 0:02:30.5]} 9. Nxe5 {[%clk 0:02:59]} 9...
Ke8 {[%clk 0:02:27.9]} 10. Nxc6 {[%clk 0:02:58.6]} 10... Bb7 {[%clk 0:02:28.4]}
11. Ne5 {[%clk 0:02:45.5]} 11... Bxg2 {[%clk 0:02:26.5]} 12. Rg1 {[%clk
0:02:45.7]} 12... Be4 {[%clk 0:02:26.9]} 13. Nc3 {[%clk 0:02:26.7]} 13... a6
{[%clk 0:02:01.8]} 14. Be3 {[%clk 0:01:20.9]} 14... Bxc2 {[%clk 0:01:52.7]} 15.
Rc1 {[%clk 0:01:20.1]} 15... Bf5 {[%clk 0:01:49.2]} 16. Na4 {[%clk 0:01:13.6]}
16... Rc8 {[%clk 0:01:29.8]} 17. Ke2 {[%clk 0:00:59.3]} 17... Nd5 {[%clk
0:01:23.9]} 18. Bc5 {[%clk 0:00:37.4]} 18... f6 {[%clk 0:01:06.5]} 19. Nc4
{[%clk 0:00:36.7]} 19... Kf7 {[%clk 0:01:04.6]} 20. Ncb6 {[%clk 0:00:32.2]}
20... Nxb6 {[%clk 0:01:00.5]} 21. Nxb6 {[%clk 0:00:33.1]} 21... Rc6 {[%clk
0:00:59.7]} 22. Nd5 {[%clk 0:00:18.9]} 22... a5 {[%clk 0:00:33.6]} 23. Rgd1
{[%clk 0:00:16.5]} 23... Be6 {[%clk 0:00:20.3]} 24. Ne3 {[%clk 0:00:15.3]} 24...
Bxa2 {[%clk 0:00:18]} 25. Rd8 {[%clk 0:00:12.3]} 25... e5 {[%clk 0:00:10.1]} 26.
Ra1 {[%clk 0:00:12.1]} 26... Rxc5 {[%clk 0:00:07]} 27. Rxa2 {[%clk 0:00:11.9]}
27... Rb5 {[%clk 0:00:07.7]} 28. Nc4 {[%clk 0:00:09.4]} 28... g6 {[%clk
0:00:03.9]} 29. Ra8 {[%clk 0:00:09.3]} 29... Bg7 {[%clk 0:00:02.9]} 30. Nd6+
{[%clk 0:00:09.3]} 30... Ke6 {[%clk 0:00:02.8]} 31. Rxh8 {[%clk 0:00:09.3]}
31... Bxh8 {[%clk 0:00:03.7]} 32. Nxb5 {[%clk 0:00:09.1]} 32... Kd5 {[%clk
0:00:03.6]} 33. Rxa5 {[%clk 0:00:10]} 33... e4 {[%clk 0:00:04.5]} 34. Nc3+
{[%clk 0:00:10]} 34... Kc4 {[%clk 0:00:04.9]} 35. Nxe4 {[%clk 0:00:09.5]} 35...
f5 {[%clk 0:00:05.6]} 36. Nd2+ {[%clk 0:00:09.6]} 36... Kb4 {[%clk 0:00:05.5]}
37. Ra8 {[%clk 0:00:10]} 37... Bxb2 {[%clk 0:00:05.5]} 38. Rb8+ {[%clk
0:00:10.4]} 38... Kc3 {[%clk 0:00:06.4]} 39. Nb1+ {[%clk 0:00:10.3]} 39... Kc2
{[%clk 0:00:06.9]} 40. Nd2 {[%clk 0:00:09]} 40... Be5 {[%clk 0:00:07]} 41. Nf3
{[%clk 0:00:09]} 41... Bxb8 {[%clk 0:00:06.8]} 42. Ng5 {[%clk 0:00:09]} 42... h6
{[%clk 0:00:06]} 43. Nf7 {[%clk 0:00:08.3]} 43... Bf4 {[%clk 0:00:06.4]} 44. h3
{[%clk 0:00:07.6]} 44... h5 {[%clk 0:00:04.9]} 45. Kf3 {[%clk 0:00:07.8]} 45...
g5 {[%clk 0:00:04.4]} 46. Nh6 {[%clk 0:00:06.9]} 46... Bd2 {[%clk 0:00:02.6]}
47. Nxf5 {[%clk 0:00:06.6]} 47... Kd3 {[%clk 0:00:03.5]} 48. Ng7 {[%clk
0:00:05.8]} 48... h4 {[%clk 0:00:02.4]} 49. Ne6 {[%clk 0:00:06.1]} 49... Be1
{[%clk 0:00:01.4]} 50. Nxg5 {[%clk 0:00:05.3]} 50... Bd2 {[%clk 0:00:02]} 51.
Ne4 {[%clk 0:00:05.3]} 51... Bb4 {[%clk 0:00:01.6]} 52. Nf6 {[%clk 0:00:05]}
52... Be7 {[%clk 0:00:02.5]} 53. Ng4 {[%clk 0:00:05.1]} 53... Kd4 {[%clk
0:00:03.2]} 54. Kf4 {[%clk 0:00:05]} 54... Bd6+ {[%clk 0:00:03.4]} 55. Kf5
{[%clk 0:00:05.3]} 55... Bg3 {[%clk 0:00:02.5]} 56. f4 {[%clk 0:00:05.1]} 56...
Kd5 {[%clk 0:00:01.8]} 57. Ne5 {[%clk 0:00:03.4]} 57... Bh2 {[%clk 0:00:01.4]}
58. Nf3 {[%clk 0:00:03.4]} 58... Bg3 {[%clk 0:00:02.3]} 59. Kg4 {[%clk
0:00:03.7]} 59... Ke4 {[%clk 0:00:03.1]} 60. Nxh4 {[%clk 0:00:03.9]} 60... Bxh4
{[%clk 0:00:03.2]} 61. Kxh4 {[%clk 0:00:03.6]} 61... Kxf4 {[%clk 0:00:04.1]} 62.
Kh5 {[%clk 0:00:04.3]} 62... Kf5 {[%clk 0:00:05]} 63. h4 {[%clk 0:00:04.7]}
63... Kf6 {[%clk 0:00:05.9]} 64. Kh6 {[%clk 0:00:05.1]} 64... Kf7 {[%clk
0:00:06.3]} 65. h5 {[%clk 0:00:05.7]} 65... Kg8 {[%clk 0:00:06.8]} 66. Kg6
{[%clk 0:00:05.4]} 66... Kh8 {[%clk 0:00:07.7]} 67. h6 {[%clk 0:00:05.2]} 67...
Kg8 {[%clk 0:00:08.6]} 68. h7+ {[%clk 0:00:05.6]} 68... Kh8 {[%clk 0:00:09.5]}
69. Kh6 {[%clk 0:00:06.4]} 1/2-1/2

[Event "*** Titled Tuesday Blitz"]
[Site "Chess.com"]
[Date "2020.05.12"]
[Round "5"]
[White "woodhy"]
[Black "checkmatequen"]
[Result "0-1"]
[WhiteElo "2453"]
[BlackElo "2265"]
[TimeControl "180+1"]
[EndTime "10:56:57 PDT"]
[Termination "checkmatequen won by resignation"]

1. e4 {[%clk 0:02:52.7]} 1... c5 {[%clk 0:02:56.6]} 2. Nf3 {[%clk 0:02:50.3]}
2... e6 {[%clk 0:02:55.7]} 3. d4 {[%clk 0:02:50.7]} 3... cxd4 {[%clk 0:02:55.4]}
4. Nxd4 {[%clk 0:02:51.6]} 4... a6 {[%clk 0:02:55]} 5. c4 {[%clk 0:02:51.7]}
5... Nf6 {[%clk 0:02:53.5]} 6. Nc3 {[%clk 0:02:51.9]} 6... Bb4 {[%clk
0:02:53.6]} 7. Bd3 {[%clk 0:02:50.9]} 7... Nc6 {[%clk 0:02:52.6]} 8. Nxc6 {[%clk
0:02:48.8]} 8... dxc6 {[%clk 0:02:53.5]} 9. Qc2 {[%clk 0:02:43.8]} 9... e5
{[%clk 0:02:50.9]} 10. O-O {[%clk 0:02:43.1]} 10... O-O {[%clk 0:02:50.5]} 11.
Be3 {[%clk 0:02:43.3]} 11... Ng4 {[%clk 0:02:47.8]} 12. Bd2 {[%clk 0:02:39.5]}
12... Qd6 {[%clk 0:02:23.6]} 13. h3 {[%clk 0:02:23.8]} 13... Rd8 {[%clk
0:02:17]} 14. hxg4 {[%clk 0:01:41.7]} 14... Qxd3 {[%clk 0:02:15.5]} 15. Qb3
{[%clk 0:01:41.8]} 15... Qxd2 {[%clk 0:02:00.4]} 16. Qxb4 {[%clk 0:01:40.6]}
16... Bxg4 {[%clk 0:01:53.7]} 17. Qxb7 {[%clk 0:01:39.6]} 17... Rab8 {[%clk
0:01:45.5]} 18. Qc7 {[%clk 0:00:38]} 18... Rxb2 {[%clk 0:01:25.6]} 19. Nd5
{[%clk 0:00:33.8]} 19... Rf8 {[%clk 0:00:59.1]} 20. Ne7+ {[%clk 0:00:28]} 20...
Kh8 {[%clk 0:00:57.3]} 21. Nxc6 {[%clk 0:00:28.9]} 21... Be2 {[%clk 0:00:55]}
22. Rfb1 {[%clk 0:00:14.8]} 22... Bxc4 {[%clk 0:00:47.7]} 23. Rxb2 {[%clk
0:00:14.8]} 23... Qxb2 {[%clk 0:00:48.5]} 24. Rd1 {[%clk 0:00:14.6]} 24... h6
{[%clk 0:00:35]} 25. Nxe5 {[%clk 0:00:13]} 25... Bxa2 {[%clk 0:00:31.6]} 26. Nd7
{[%clk 0:00:11.7]} 26... Rg8 {[%clk 0:00:27.6]} 27. Nc5 {[%clk 0:00:11.5]} 27...
a5 {[%clk 0:00:23.4]} 28. Qxa5 {[%clk 0:00:10.8]} 28... Bc4 {[%clk 0:00:18.7]}
29. Qd2 {[%clk 0:00:07.6]} 29... Qe5 {[%clk 0:00:17.7]} 30. Nd3 {[%clk
0:00:02.1]} 30... Qxe4 {[%clk 0:00:12.1]} 31. Nc5 {[%clk 0:00:02.1]} 31... Qe5
{[%clk 0:00:11.1]} 32. Qd4 {[%clk 0:00:03]} 32... Qxd4 {[%clk 0:00:10.8]} 33.
Rxd4 {[%clk 0:00:03.7]} 33... Be2 {[%clk 0:00:10.6]} 34. Rf4 {[%clk 0:00:04.6]}
34... Bh5 {[%clk 0:00:10.7]} 35. Ne4 {[%clk 0:00:05.5]} 35... Bg6 {[%clk
0:00:10.8]} 36. Ng3 {[%clk 0:00:06.4]} 36... Re8 {[%clk 0:00:10.9]} 37. Rf3
{[%clk 0:00:07.3]} 37... f6 {[%clk 0:00:10.5]} 38. Re3 {[%clk 0:00:08.2]} 38...
Rxe3 {[%clk 0:00:09.9]} 39. fxe3 {[%clk 0:00:09.1]} 39... Kg8 {[%clk 0:00:10.4]}
40. Kf2 {[%clk 0:00:09.7]} 40... Kf7 {[%clk 0:00:11]} 41. Ne2 {[%clk 0:00:10.6]}
41... Ke6 {[%clk 0:00:11.6]} 42. Nf4+ {[%clk 0:00:11.5]} 42... Kf5 {[%clk
0:00:11.6]} 43. Nd5 {[%clk 0:00:11.9]} 43... Bf7 {[%clk 0:00:11.4]} 44. Ne7+
{[%clk 0:00:12.2]} 44... Ke6 {[%clk 0:00:11.7]} 45. Nc6 {[%clk 0:00:13.1]} 45...
Kd5 {[%clk 0:00:11.6]} 46. Nd4 {[%clk 0:00:14]} 46... g6 {[%clk 0:00:11.2]} 47.
Ne2 {[%clk 0:00:14]} 47... f5 {[%clk 0:00:11.4]} 48. Nf4+ {[%clk 0:00:14.2]}
48... Ke5 {[%clk 0:00:11.8]} 49. Nd3+ {[%clk 0:00:14.2]} 49... Ke4 {[%clk
0:00:12.1]} 50. Nc5+ {[%clk 0:00:14.7]} 50... Kd5 {[%clk 0:00:11.9]} 51. Nd3
{[%clk 0:00:15.6]} 51... g5 {[%clk 0:00:12]} 52. Nb4+ {[%clk 0:00:15.4]} 52...
Ke4 {[%clk 0:00:11.3]} 53. Nc2 {[%clk 0:00:15.8]} 53... Bc4 {[%clk 0:00:10.5]}
54. Ne1 {[%clk 0:00:15.3]} 54... h5 {[%clk 0:00:10.3]} 55. Nf3 {[%clk
0:00:14.9]} 55... g4 {[%clk 0:00:10.6]} 56. Nd2+ {[%clk 0:00:14.9]} 56... Kd3
{[%clk 0:00:10.4]} 57. Nf1 {[%clk 0:00:14.8]} 57... h4 {[%clk 0:00:08.4]} 58.
Ke1 {[%clk 0:00:13.9]} 58... Bd5 {[%clk 0:00:08.6]} 59. Kf2 {[%clk 0:00:13.7]}
59... h3 {[%clk 0:00:07.8]} 60. gxh3 {[%clk 0:00:13.5]} 60... gxh3 {[%clk
0:00:08.7]} 61. Kg3 {[%clk 0:00:13.4]} 61... Bg2 {[%clk 0:00:07.5]} 62. Nh2
{[%clk 0:00:13.3]} 62... Kxe3 {[%clk 0:00:08]} 63. Kh4 {[%clk 0:00:13.4]} 63...
f4 {[%clk 0:00:08.5]} 64. Kg4 {[%clk 0:00:13.6]} 64... f3 {[%clk 0:00:08.9]} 65.
Kg3 {[%clk 0:00:13.9]} 65... f2 {[%clk 0:00:08.7]} 66. Kg4 {[%clk 0:00:14.2]}
66... f1=Q {[%clk 0:00:08.7]} 67. Nxf1+ {[%clk 0:00:14.8]} 67... Bxf1 {[%clk
0:00:09.6]} 68. Kg3 {[%clk 0:00:15.7]} 68... Bg2 {[%clk 0:00:08.7]} 69. Kh2
{[%clk 0:00:15.9]} 69... Kf3 {[%clk 0:00:09.1]} 70. Kg1 {[%clk 0:00:16.1]} 70...
Kg4 {[%clk 0:00:09.4]} 71. Kh2 {[%clk 0:00:17]} 71... Kf3 {[%clk 0:00:09.4]} 72.
Kg1 {[%clk 0:00:17.4]} 72... Ke2 {[%clk 0:00:09.8]} 73. Kh2 {[%clk 0:00:17.8]}
73... Kf1 {[%clk 0:00:10.3]} 74. Kg3 {[%clk 0:00:18.1]} 74... Kg1 {[%clk
0:00:10.9]} 0-1